[Event "December 12 Early 2023"]
[Site "https://www.chess.com"]
[Date "2023.12.12"]
[Round "10"]
[White "Kraiouchkine, Nikita"]
[Black "Bach Ngoc Thuy Duong"]
[Result "1-0"]
[Board "93"]
[TimeControl "180+1"]
[WhiteFideId "2607140"]
[BlackFideId "12408956"]
[WhiteElo "2489"]
[BlackElo "2404"]
[WhiteTeam "CAN"]
[BlackTeam "VIE"]
[WhiteClock "0:00:05"]
[BlackClock "0:00:00"]

1. e4 {[%clk 0:03:00]}  c5 {[%clk 0:02:59]} 2. Nf3 {[%clk 0:02:58]}  d6 {[%clk 0:02:59]} 3. d4 {[%clk 0:02:57]}  cxd4 {[%clk 0:03:00]} 4. Nxd4 {[%clk 0:02:57]}  Nf6 {[%clk 0:03:01]} 5. Nc3 {[%clk 0:02:57]}  a6 {[%clk 0:03:01]} 6. Bc4 {[%clk 0:02:57]}  e6 {[%clk 0:03:01]} 7. O-O {[%clk 0:02:57]}  Qc7 {[%clk 0:03:01]} 8. Bb3 {[%clk 0:02:57]}  Nbd7 {[%clk 0:02:58]} 9. Bxe6 {[%clk 0:02:49]}  fxe6 {[%clk 0:02:48]} 10. Nxe6 {[%clk 0:02:48]}  Qc4 {[%clk 0:02:01]} 11. Nd5 {[%clk 0:02:28]}  Nxd5 {[%clk 0:01:59]} 12. exd5 {[%clk 0:02:11]}  Kf7 {[%clk 0:01:11]} 13. b3 {[%clk 0:01:35]}  Qc3 {[%clk 0:00:43]} 14. Be3 {[%clk 0:01:06]}  Nf6 {[%clk 0:00:38]} 15. Bd4 {[%clk 0:01:00]}  Qa5 {[%clk 0:00:37]} 16. Bxf6 {[%clk 0:00:51]}  Bxe6 {[%clk 0:00:36]} 17. dxe6+ {[%clk 0:00:29]}  Kxf6 {[%clk 0:00:35]} 18. Qf3+ {[%clk 0:00:28]}  Qf5 {[%clk 0:00:32]} 19. Qxb7 {[%clk 0:00:28]}  Be7 {[%clk 0:00:31]} 20. Rfe1 {[%clk 0:00:20]}  Rhb8 {[%clk 0:00:25]} 21. Qd7 {[%clk 0:00:20]}  Qb5 {[%clk 0:00:20]} 22. Re3 {[%clk 0:00:10]}  Qxd7 {[%clk 0:00:19]} 23. exd7 {[%clk 0:00:11]}  Kf7 {[%clk 0:00:18]} 24. Rae1 {[%clk 0:00:11]}  Bf6 {[%clk 0:00:18]} 25. Rd3 {[%clk 0:00:06]}  Be5 {[%clk 0:00:14]} 26. f4 {[%clk 0:00:07]}  Bf6 {[%clk 0:00:13]} 27. Rxd6 {[%clk 0:00:07]}  Rd8 {[%clk 0:00:13]} 28. Kf2 {[%clk 0:00:04]}  Ra7 {[%clk 0:00:13]} 29. Red1 {[%clk 0:00:04]}  Ke7 {[%clk 0:00:13]} 30. Kf3 {[%clk 0:00:05]}  Rdxd7 {[%clk 0:00:12]} 31. Rxd7+ {[%clk 0:00:04]}  Rxd7 {[%clk 0:00:13]} 32. Re1+ {[%clk 0:00:02]}  Kd8 {[%clk 0:00:12]} 33. Re2 {[%clk 0:00:03]}  Kc7 {[%clk 0:00:12]} 34. g4 {[%clk 0:00:03]}  Kb7 {[%clk 0:00:11]} 35. g5 {[%clk 0:00:03]}  Bc3 {[%clk 0:00:11]} 36. h4 {[%clk 0:00:03]}  Bb4 {[%clk 0:00:08]} 37. f5 {[%clk 0:00:02]}  Rd4 {[%clk 0:00:03]} 38. Re4 {[%clk 0:00:02]}  Rxe4 {[%clk 0:00:02]} 39. Kxe4 {[%clk 0:00:02]}  Kc6 {[%clk 0:00:03]} 40. Ke5 {[%clk 0:00:03]}  Kd7 {[%clk 0:00:02]} 41. f6 {[%clk 0:00:03]}  gxf6+ {[%clk 0:00:02]} 42. Kxf6 {[%clk 0:00:04]}  Bc3+ {[%clk 0:00:02]} 43. Kf7 {[%clk 0:00:05]}  Be1 {[%clk 0:00:00]} 44. h5 {[%clk 0:00:05]} 1-0

[Event "December 12 Early 2023"]
[Site "https://www.chess.com"]
[Date "2023.12.12"]
[Round "10"]
[White "Zhuk, Valeriy"]
[Black "Kotyk, Michael"]
[Result "0-1"]
[Board "95"]
[TimeControl "180+1"]
[WhiteFideId "24151254"]
[BlackFideId "16214501"]
[WhiteElo "2391"]
[BlackElo "2466"]
[WhiteTeam "RUS"]
[BlackTeam "GER"]
[WhiteClock "0:00:00"]
[BlackClock "0:00:21"]

1. Nf3 {[%clk 0:03:00]}  Nf6 {[%clk 0:02:50]} 2. c4 {[%clk 0:02:59]}  g6 {[%clk 0:02:50]} 3. Nc3 {[%clk 0:02:59]}  Bg7 {[%clk 0:02:51]} 4. e4 {[%clk 0:02:59]}  d6 {[%clk 0:02:51]} 5. d4 {[%clk 0:03:00]}  O-O {[%clk 0:02:50]} 6. Be2 {[%clk 0:03:00]}  e5 {[%clk 0:02:48]} 7. d5 {[%clk 0:03:01]}  a5 {[%clk 0:02:46]} 8. Bg5 {[%clk 0:03:00]}  Na6 {[%clk 0:02:45]} 9. Nd2 {[%clk 0:03:00]}  Nc5 {[%clk 0:02:36]} 10. b3 {[%clk 0:03:00]}  h6 {[%clk 0:02:17]} 11. Be3 {[%clk 0:02:58]}  b6 {[%clk 0:02:12]} 12. a3 {[%clk 0:02:58]}  Nh7 {[%clk 0:02:10]} 13. Rb1 {[%clk 0:02:55]}  f5 {[%clk 0:02:09]} 14. f3 {[%clk 0:02:55]}  f4 {[%clk 0:01:59]} 15. Bf2 {[%clk 0:02:55]}  g5 {[%clk 0:01:59]} 16. Qc2 {[%clk 0:02:50]}  h5 {[%clk 0:01:59]} 17. b4 {[%clk 0:02:47]}  axb4 {[%clk 0:01:58]} 18. axb4 {[%clk 0:02:47]}  Nd7 {[%clk 0:01:59]} 19. Nb5 {[%clk 0:02:38]}  Ba6 {[%clk 0:01:54]} 20. c5 {[%clk 0:02:30]}  bxc5 {[%clk 0:01:54]} 21. bxc5 {[%clk 0:02:31]}  Ndf6 {[%clk 0:01:45]} 22. cxd6 {[%clk 0:01:58]}  cxd6 {[%clk 0:01:46]} 23. Nc7 {[%clk 0:01:55]}  Rc8 {[%clk 0:01:28]} 24. Bxa6 {[%clk 0:01:52]}  Rxc7 {[%clk 0:01:25]} 25. Qd3 {[%clk 0:01:44]}  Nd7 {[%clk 0:01:16]} 26. Ke2 {[%clk 0:01:27]}  Nc5 {[%clk 0:01:12]} 27. Bxc5 {[%clk 0:01:25]}  Rxc5 {[%clk 0:01:13]} 28. Rhc1 {[%clk 0:01:23]}  Rxc1 {[%clk 0:01:07]} 29. Rxc1 {[%clk 0:01:23]}  g4 {[%clk 0:01:08]} 30. Bc8 {[%clk 0:01:19]}  Qh4 {[%clk 0:01:07]} 31. Nf1 {[%clk 0:01:09]}  gxf3+ {[%clk 0:00:59]} 32. gxf3 {[%clk 0:01:00]}  Kh8 {[%clk 0:00:53]} 33. Rc7 {[%clk 0:00:54]}  Qg5 {[%clk 0:00:51]} 34. Kf2 {[%clk 0:00:51]}  Bf6 {[%clk 0:00:49]} 35. Bf5 {[%clk 0:00:50]}  Qh4+ {[%clk 0:00:41]} 36. Ke2 {[%clk 0:00:48]}  Ng5 {[%clk 0:00:41]} 37. Qc3 {[%clk 0:00:35]}  Bd8 {[%clk 0:00:25]} 38. Rd7 {[%clk 0:00:28]}  Bb6 {[%clk 0:00:23]} 39. Qe1 {[%clk 0:00:24]}  Qxe1+ {[%clk 0:00:22]} 40. Kxe1 {[%clk 0:00:25]}  Nxf3+ {[%clk 0:00:23]} 41. Kd1 {[%clk 0:00:21]}  Bc5 {[%clk 0:00:23]} 42. Rh7+ {[%clk 0:00:19]}  Kg8 {[%clk 0:00:23]} 43. Rxh5 {[%clk 0:00:20]}  Ra8 {[%clk 0:00:23]} 44. Be6+ {[%clk 0:00:20]}  Kg7 {[%clk 0:00:23]} 45. Bf5 {[%clk 0:00:20]}  Ra1+ {[%clk 0:00:22]} 46. Ke2 {[%clk 0:00:16]}  Nd4+ {[%clk 0:00:23]} 47. Kd3 {[%clk 0:00:10]}  Rxf1 {[%clk 0:00:20]} 48. Rh7+ {[%clk 0:00:08]}  Kf6 {[%clk 0:00:21]} 49. Rh6+ {[%clk 0:00:07]}  Kg7 {[%clk 0:00:20]} 50. Rh7+ {[%clk 0:00:07]}  Kg8 {[%clk 0:00:21]} 51. Bg6 {[%clk 0:00:00]}  Rg1 {[%clk 0:00:21]} 0-1

[Event "December 12 Early 2023"]
[Site "https://www.chess.com"]
[Date "2023.12.12"]
[Round "10"]
[White "Silvestre, Christian"]
[Black "Kiremitciyan, Ari"]
[Result "0-1"]
[Board "96"]
[TimeControl "180+1"]
[WhiteFideId "30956269"]
[BlackFideId "6373445"]
[WhiteElo "2344"]
[BlackElo "2460"]
[WhiteTeam "USA"]
[BlackTeam "TUR"]
[WhiteClock "0:00:14"]
[BlackClock "0:01:33"]

1. e4 {[%clk 0:03:00]}  c6 {[%clk 0:02:59]} 2. Nc3 {[%clk 0:02:58]}  d5 {[%clk 0:02:59]} 3. Nf3 {[%clk 0:02:59]}  dxe4 {[%clk 0:02:59]} 4. Nxe4 {[%clk 0:02:59]}  Nf6 {[%clk 0:03:00]} 5. Nxf6+ {[%clk 0:02:53]}  exf6 {[%clk 0:03:00]} 6. Bc4 {[%clk 0:02:52]}  Bd6 {[%clk 0:03:00]} 7. O-O {[%clk 0:02:51]}  O-O {[%clk 0:03:00]} 8. h3 {[%clk 0:02:51]}  Re8 {[%clk 0:02:57]} 9. Re1 {[%clk 0:02:51]}  Rxe1+ {[%clk 0:02:55]} 10. Qxe1 {[%clk 0:02:50]}  Nd7 {[%clk 0:02:56]} 11. d4 {[%clk 0:02:47]}  Nf8 {[%clk 0:02:56]} 12. c3 {[%clk 0:02:44]}  a5 {[%clk 0:02:56]} 13. a4 {[%clk 0:02:41]}  Be6 {[%clk 0:02:55]} 14. Bxe6 {[%clk 0:02:33]}  Nxe6 {[%clk 0:02:56]} 15. Bd2 {[%clk 0:02:31]}  Qd7 {[%clk 0:02:50]} 16. Qe4 {[%clk 0:02:23]}  Re8 {[%clk 0:02:46]} 17. Re1 {[%clk 0:02:19]}  Nc7 {[%clk 0:02:45]} 18. Qd3 {[%clk 0:02:14]}  Rxe1+ {[%clk 0:02:43]} 19. Nxe1 {[%clk 0:02:12]}  b6 {[%clk 0:02:37]} 20. b3 {[%clk 0:01:49]}  h5 {[%clk 0:02:26]} 21. Qe2 {[%clk 0:01:21]}  g6 {[%clk 0:02:25]} 22. Nd3 {[%clk 0:01:14]}  Qf5 {[%clk 0:02:13]} 23. g4 {[%clk 0:01:07]}  hxg4 {[%clk 0:02:12]} 24. hxg4 {[%clk 0:01:08]}  Qd5 {[%clk 0:02:09]} 25. Nc1 {[%clk 0:00:42]}  Ne6 {[%clk 0:02:05]} 26. Be3 {[%clk 0:00:25]}  f5 {[%clk 0:02:01]} 27. c4 {[%clk 0:00:24]}  Qe4 {[%clk 0:01:58]} 28. f3 {[%clk 0:00:19]}  Qb1 {[%clk 0:01:57]} 29. gxf5 {[%clk 0:00:19]}  Qxf5 {[%clk 0:01:57]} 30. Nd3 {[%clk 0:00:17]}  Ng5 {[%clk 0:01:42]} 31. Bxg5 {[%clk 0:00:17]}  Qxg5+ {[%clk 0:01:43]} 32. Qg2 {[%clk 0:00:13]}  Qf6 {[%clk 0:01:43]} 33. Qg4 {[%clk 0:00:12]}  Kg7 {[%clk 0:01:40]} 34. Qe4 {[%clk 0:00:13]}  Bc7 {[%clk 0:01:34]} 35. Nf4 {[%clk 0:00:11]}  Qxf4 {[%clk 0:01:33]} 36. Qxf4 {[%clk 0:00:10]}  Bxf4 {[%clk 0:01:32]} 37. d5 {[%clk 0:00:11]}  cxd5 {[%clk 0:01:32]} 38. cxd5 {[%clk 0:00:12]}  Kf6 {[%clk 0:01:32]} 39. Kf1 {[%clk 0:00:13]}  Ke5 {[%clk 0:01:32]} 40. Ke2 {[%clk 0:00:13]}  Kxd5 {[%clk 0:01:33]} 41. Kd3 {[%clk 0:00:14]}  f5 {[%clk 0:01:33]} 42. Ke2 {[%clk 0:00:14]}  g5 {[%clk 0:01:33]} 0-1

[Event "December 12 Early 2023"]
[Site "https://www.chess.com"]
[Date "2023.12.12"]
[Round "10"]
[White "Mestnikov, Aisen"]
[Black "Ernst, Luca"]
[Result "1-0"]
[Board "97"]
[TimeControl "180+1"]
[WhiteFideId "34130117"]
[BlackFideId "45117055"]
[WhiteElo "2456"]
[BlackElo "2336"]
[WhiteTeam "RUS"]
[BlackTeam "FRA"]
[WhiteClock "0:00:58"]
[BlackClock "0:00:03"]

1. d4 {[%clk 0:03:00]}  Nf6 {[%clk 0:02:59]} 2. c4 {[%clk 0:03:01]}  g6 {[%clk 0:02:59]} 3. Nc3 {[%clk 0:03:00]}  d5 {[%clk 0:02:59]} 4. Nf3 {[%clk 0:03:00]}  Bg7 {[%clk 0:02:58]} 5. h4 {[%clk 0:03:01]}  Bg4 {[%clk 0:02:54]} 6. Ne5 {[%clk 0:03:00]}  Bf5 {[%clk 0:02:51]} 7. h5 {[%clk 0:02:56]}  Nc6 {[%clk 0:02:25]} 8. h6 {[%clk 0:02:54]}  Bf8 {[%clk 0:02:25]} 9. Bf4 {[%clk 0:02:41]}  e6 {[%clk 0:02:21]} 10. Qa4 {[%clk 0:02:25]}  Rc8 {[%clk 0:01:31]} 11. Nxc6 {[%clk 0:02:24]}  Qd7 {[%clk 0:01:31]} 12. Ne5 {[%clk 0:02:23]}  Qxa4 {[%clk 0:01:23]} 13. Nxa4 {[%clk 0:02:24]}  dxc4 {[%clk 0:01:21]} 14. Nc3 {[%clk 0:02:22]}  c5 {[%clk 0:01:19]} 15. dxc5 {[%clk 0:02:14]}  Bxc5 {[%clk 0:01:20]} 16. f3 {[%clk 0:02:02]}  Bb4 {[%clk 0:01:14]} 17. e4 {[%clk 0:02:02]}  Bxe4 {[%clk 0:01:06]} 18. fxe4 {[%clk 0:02:01]}  Nxe4 {[%clk 0:01:07]} 19. Bd2 {[%clk 0:01:58]}  Nxd2 {[%clk 0:00:45]} 20. Kxd2 {[%clk 0:01:59]}  b5 {[%clk 0:00:46]} 21. Kc2 {[%clk 0:01:58]}  f6 {[%clk 0:00:44]} 22. Nf3 {[%clk 0:01:55]}  a6 {[%clk 0:00:43]} 23. a4 {[%clk 0:01:54]}  Bxc3 {[%clk 0:00:40]} 24. bxc3 {[%clk 0:01:55]}  Ke7 {[%clk 0:00:29]} 25. axb5 {[%clk 0:01:55]}  axb5 {[%clk 0:00:30]} 26. Rb1 {[%clk 0:01:55]}  Rc5 {[%clk 0:00:28]} 27. Nd4 {[%clk 0:01:54]}  Rb8 {[%clk 0:00:27]} 28. Be2 {[%clk 0:01:22]}  e5 {[%clk 0:00:26]} 29. Nf3 {[%clk 0:01:19]}  Ke6 {[%clk 0:00:23]} 30. Rhd1 {[%clk 0:01:17]}  g5 {[%clk 0:00:11]} 31. g4 {[%clk 0:01:16]}  Rc6 {[%clk 0:00:07]} 32. Rb4 {[%clk 0:01:12]}  Rc5 {[%clk 0:00:02]} 33. Rdb1 {[%clk 0:01:11]}  Ra8 {[%clk 0:00:01]} 34. Rxb5 {[%clk 0:01:10]}  Ra2+ {[%clk 0:00:02]} 35. R5b2 {[%clk 0:01:08]}  Rxb2+ {[%clk 0:00:03]} 36. Rxb2 {[%clk 0:01:08]}  Kd5 {[%clk 0:00:03]} 37. Rb4 {[%clk 0:01:08]}  Ke4 {[%clk 0:00:04]} 38. Nd2+ {[%clk 0:01:04]}  Kf4 {[%clk 0:00:03]} 39. Rxc4+ {[%clk 0:01:00]}  Rxc4 {[%clk 0:00:03]} 40. Nxc4 {[%clk 0:01:01]}  e4 {[%clk 0:00:03]} 41. Kd2 {[%clk 0:01:01]}  Kg3 {[%clk 0:00:02]} 42. Ke3 {[%clk 0:01:01]}  Kh4 {[%clk 0:00:02]} 43. Kxe4 {[%clk 0:01:00]}  f5+ {[%clk 0:00:03]} 44. Kxf5 {[%clk 0:01:00]}  Kg3 {[%clk 0:00:02]} 45. Kxg5 {[%clk 0:01:01]}  Kf2 {[%clk 0:00:03]} 46. Kf6 {[%clk 0:01:00]}  Kxe2 {[%clk 0:00:02]} 47. Kg7 {[%clk 0:00:58]}  Kd3 {[%clk 0:00:03]} 1-0

[Event "December 12 Early 2023"]
[Site "https://www.chess.com"]
[Date "2023.12.12"]
[Round "10"]
[White "Nasybullina, Alfia"]
[Black "Khromkin, Andrey"]
[Result "1-0"]
[Board "100"]
[TimeControl "180+1"]
[WhiteFideId "4132416"]
[BlackFideId "4154126"]
[WhiteElo "2297"]
[BlackElo "2451"]
[WhiteTeam "KAZ"]
[BlackTeam "RUS"]
[WhiteClock "0:01:37"]
[BlackClock "0:00:14"]

1. d4 {[%clk 0:02:58]}  d5 {[%clk 0:02:59]} 2. Nf3 {[%clk 0:02:58]}  a6 {[%clk 0:02:59]} 3. Bf4 {[%clk 0:02:58]}  b5 {[%clk 0:02:59]} 4. c3 {[%clk 0:02:56]}  Nd7 {[%clk 0:02:56]} 5. Nbd2 {[%clk 0:02:55]}  e6 {[%clk 0:02:55]} 6. e4 {[%clk 0:02:55]}  dxe4 {[%clk 0:02:53]} 7. Nxe4 {[%clk 0:02:56]}  Bb7 {[%clk 0:02:53]} 8. Bd3 {[%clk 0:02:57]}  Ngf6 {[%clk 0:02:53]} 9. Qe2 {[%clk 0:02:53]}  Nd5 {[%clk 0:02:32]} 10. Bg3 {[%clk 0:02:49]}  N7f6 {[%clk 0:02:31]} 11. O-O {[%clk 0:02:46]}  Bd6 {[%clk 0:02:30]} 12. Nxd6+ {[%clk 0:02:36]}  cxd6 {[%clk 0:02:29]} 13. Rfe1 {[%clk 0:02:36]}  O-O {[%clk 0:02:28]} 14. Ng5 {[%clk 0:02:33]}  h6 {[%clk 0:02:25]} 15. Ne4 {[%clk 0:02:32]}  Ra7 {[%clk 0:02:01]} 16. Nxd6 {[%clk 0:02:26]}  Ba8 {[%clk 0:01:54]} 17. Ne4 {[%clk 0:02:23]}  Nxe4 {[%clk 0:01:52]} 18. Bxe4 {[%clk 0:02:24]}  Nf6 {[%clk 0:01:46]} 19. Bxa8 {[%clk 0:02:23]}  Qxa8 {[%clk 0:01:44]} 20. Be5 {[%clk 0:02:21]}  Nd5 {[%clk 0:01:43]} 21. Qf3 {[%clk 0:02:18]}  f5 {[%clk 0:01:34]} 22. Re2 {[%clk 0:02:13]}  f4 {[%clk 0:01:24]} 23. Rae1 {[%clk 0:02:11]}  Qc8 {[%clk 0:01:17]} 24. Bd6 {[%clk 0:02:11]}  Rf6 {[%clk 0:01:17]} 25. Qg4 {[%clk 0:02:05]}  f3 {[%clk 0:01:17]} 26. Rxe6 {[%clk 0:02:03]}  Rxe6 {[%clk 0:01:04]} 27. Qxe6+ {[%clk 0:02:02]}  Qxe6 {[%clk 0:01:03]} 28. Rxe6 {[%clk 0:02:03]}  fxg2 {[%clk 0:01:03]} 29. Be5 {[%clk 0:01:53]}  Kf7 {[%clk 0:01:00]} 30. Rc6 {[%clk 0:01:51]}  Ne7 {[%clk 0:01:00]} 31. Rc7 {[%clk 0:01:49]}  Rxc7 {[%clk 0:00:59]} 32. Bxc7 {[%clk 0:01:50]}  Ke6 {[%clk 0:00:59]} 33. Kxg2 {[%clk 0:01:48]}  Nd5 {[%clk 0:00:52]} 34. Be5 {[%clk 0:01:47]}  g6 {[%clk 0:00:51]} 35. Kf3 {[%clk 0:01:47]}  Nb6 {[%clk 0:00:52]} 36. Ke4 {[%clk 0:01:45]}  Na4 {[%clk 0:00:50]} 37. d5+ {[%clk 0:01:41]}  Kd7 {[%clk 0:00:51]} 38. b3 {[%clk 0:01:41]}  Nc5+ {[%clk 0:00:43]} 39. Kd4 {[%clk 0:01:40]}  Nb7 {[%clk 0:00:43]} 40. c4 {[%clk 0:01:38]}  bxc4 {[%clk 0:00:42]} 41. bxc4 {[%clk 0:01:39]}  Na5 {[%clk 0:00:14]} 42. c5 {[%clk 0:01:37]} 1-0

[Event "December 12 Early 2023"]
[Site "https://www.chess.com"]
[Date "2023.12.12"]
[Round "10"]
[White "Kopczynski, Michal"]
[Black "Borawski, Jakub"]
[Result "0-1"]
[Board "104"]
[TimeControl "180+1"]
[WhiteFideId "1124200"]
[BlackFideId "1143000"]
[WhiteElo "2536"]
[BlackElo "2235"]
[WhiteTeam "POL"]
[BlackTeam "POL"]
[WhiteClock "0:00:00"]
[BlackClock "0:00:11"]

1. e4 {[%clk 0:03:00]}  e5 {[%clk 0:02:59]} 2. Nf3 {[%clk 0:03:00]}  Nc6 {[%clk 0:02:59]} 3. Bb5 {[%clk 0:03:01]}  a6 {[%clk 0:02:59]} 4. Ba4 {[%clk 0:03:01]}  Nf6 {[%clk 0:03:00]} 5. d3 {[%clk 0:03:01]}  d6 {[%clk 0:02:59]} 6. h3 {[%clk 0:03:00]}  g6 {[%clk 0:02:59]} 7. O-O {[%clk 0:03:00]}  Bg7 {[%clk 0:03:00]} 8. c3 {[%clk 0:03:01]}  b5 {[%clk 0:02:59]} 9. Bc2 {[%clk 0:02:59]}  O-O {[%clk 0:02:59]} 10. a4 {[%clk 0:03:00]}  Bb7 {[%clk 0:02:58]} 11. axb5 {[%clk 0:03:00]}  axb5 {[%clk 0:02:59]} 12. Rxa8 {[%clk 0:03:00]}  Bxa8 {[%clk 0:02:57]} 13. Be3 {[%clk 0:03:01]}  Re8 {[%clk 0:02:56]} 14. Qd2 {[%clk 0:03:01]}  d5 {[%clk 0:02:55]} 15. Bg5 {[%clk 0:02:55]}  dxe4 {[%clk 0:02:54]} 16. dxe4 {[%clk 0:02:56]}  Qxd2 {[%clk 0:02:49]} 17. Nbxd2 {[%clk 0:02:56]}  h6 {[%clk 0:02:41]} 18. Be3 {[%clk 0:02:54]}  Bb7 {[%clk 0:02:29]} 19. Nb3 {[%clk 0:02:52]}  Bf8 {[%clk 0:02:23]} 20. Rd1 {[%clk 0:02:45]}  Nd8 {[%clk 0:02:05]} 21. Nbd2 {[%clk 0:02:36]}  Bd6 {[%clk 0:01:53]} 22. Bxh6 {[%clk 0:02:33]}  Ne6 {[%clk 0:01:52]} 23. Be3 {[%clk 0:02:17]}  Ra8 {[%clk 0:01:43]} 24. Ng5 {[%clk 0:02:04]}  Nc5 {[%clk 0:01:29]} 25. f3 {[%clk 0:01:59]}  Kg7 {[%clk 0:01:22]} 26. b4 {[%clk 0:01:56]}  Na4 {[%clk 0:01:17]} 27. Nb1 {[%clk 0:01:52]}  Nb2 {[%clk 0:01:15]} 28. Rc1 {[%clk 0:01:50]}  Nc4 {[%clk 0:01:11]} 29. Bf2 {[%clk 0:01:45]}  Nh5 {[%clk 0:01:10]} 30. Bb3 {[%clk 0:01:38]}  Nf4 {[%clk 0:01:01]} 31. Rd1 {[%clk 0:01:18]}  f6 {[%clk 0:00:43]} 32. g3 {[%clk 0:01:18]}  fxg5 {[%clk 0:00:42]} 33. gxf4 {[%clk 0:01:19]}  gxf4 {[%clk 0:00:42]} 34. Bxc4 {[%clk 0:01:16]}  bxc4 {[%clk 0:00:43]} 35. Nd2 {[%clk 0:01:15]}  Ra3 {[%clk 0:00:35]} 36. Rc1 {[%clk 0:01:15]}  Ba6 {[%clk 0:00:34]} 37. Bh4 {[%clk 0:01:02]}  Ra2 {[%clk 0:00:32]} 38. Nf1 {[%clk 0:00:54]}  Bc8 {[%clk 0:00:31]} 39. Rd1 {[%clk 0:00:44]}  Bxh3 {[%clk 0:00:31]} 40. Nd2 {[%clk 0:00:44]}  Be6 {[%clk 0:00:30]} 41. Nb1 {[%clk 0:00:36]}  Kh6 {[%clk 0:00:29]} 42. Bd8 {[%clk 0:00:33]}  g5 {[%clk 0:00:28]} 43. Rd2 {[%clk 0:00:24]}  Ra1 {[%clk 0:00:28]} 44. Rb2 {[%clk 0:00:24]}  g4 {[%clk 0:00:28]} 45. fxg4 {[%clk 0:00:22]}  Bxg4 {[%clk 0:00:28]} 46. Kf2 {[%clk 0:00:23]}  Bd1 {[%clk 0:00:26]} 47. Nd2 {[%clk 0:00:21]}  Bb3 {[%clk 0:00:17]} 48. Nxb3 {[%clk 0:00:21]}  cxb3 {[%clk 0:00:18]} 49. Rxb3 {[%clk 0:00:21]}  Ra2+ {[%clk 0:00:17]} 50. Kf3 {[%clk 0:00:21]}  Rc2 {[%clk 0:00:16]} 51. Ra3 {[%clk 0:00:17]}  Kg6 {[%clk 0:00:16]} 52. Rb3 {[%clk 0:00:12]}  Kf7 {[%clk 0:00:16]} 53. b5 {[%clk 0:00:12]}  Ke8 {[%clk 0:00:14]} 54. Bf6 {[%clk 0:00:11]}  Kf7 {[%clk 0:00:14]} 55. Bh4 {[%clk 0:00:11]}  Bc5 {[%clk 0:00:13]} 56. Kg4 {[%clk 0:00:09]}  Ke6 {[%clk 0:00:12]} 57. Bd8 {[%clk 0:00:08]}  Bb6 {[%clk 0:00:11]} 58. c4 {[%clk 0:00:03]}  Rxc4 {[%clk 0:00:11]} 59. Kf3 {[%clk 0:00:00]}  Rd4 {[%clk 0:00:11]} 0-1

[Event "December 12 Early 2023"]
[Site "https://www.chess.com"]
[Date "2023.12.12"]
[Round "10"]
[White "Chernomordik, Pavel"]
[Black "Barath1308"]
[Result "0-1"]
[Board "105"]
[TimeControl "180+1"]
[WhiteFideId "2804530"]
[WhiteElo "2473"]
[BlackElo "2383"]
[WhiteTeam "ISR"]
[WhiteClock "0:00:05"]
[BlackClock "0:01:07"]

1. e4 {[%clk 0:03:00]}  c5 {[%clk 0:02:59]} 2. Nc3 {[%clk 0:03:00]}  d6 {[%clk 0:02:59]} 3. f4 {[%clk 0:03:00]}  Nc6 {[%clk 0:02:59]} 4. Nf3 {[%clk 0:03:00]}  g6 {[%clk 0:02:59]} 5. Bb5 {[%clk 0:02:59]}  Bg7 {[%clk 0:02:59]} 6. O-O {[%clk 0:02:58]}  e6 {[%clk 0:02:58]} 7. Bxc6+ {[%clk 0:02:56]}  bxc6 {[%clk 0:02:57]} 8. d3 {[%clk 0:02:57]}  Ne7 {[%clk 0:02:56]} 9. Be3 {[%clk 0:02:57]}  O-O {[%clk 0:02:56]} 10. e5 {[%clk 0:02:56]}  Nf5 {[%clk 0:02:54]} 11. Bf2 {[%clk 0:02:55]}  Rb8 {[%clk 0:02:54]} 12. b3 {[%clk 0:02:54]}  h5 {[%clk 0:02:51]} 13. Qd2 {[%clk 0:02:48]}  Nd4 {[%clk 0:02:49]} 14. Nxd4 {[%clk 0:02:44]}  cxd4 {[%clk 0:02:48]} 15. Bxd4 {[%clk 0:02:44]}  dxe5 {[%clk 0:02:40]} 16. Bxe5 {[%clk 0:02:38]}  Bxe5 {[%clk 0:02:38]} 17. fxe5 {[%clk 0:02:38]}  Qd4+ {[%clk 0:02:37]} 18. Kh1 {[%clk 0:02:38]}  Qxe5 {[%clk 0:02:36]} 19. Rae1 {[%clk 0:02:37]}  Qg7 {[%clk 0:02:32]} 20. Ne4 {[%clk 0:02:37]}  f5 {[%clk 0:02:27]} 21. Nc5 {[%clk 0:02:35]}  e5 {[%clk 0:02:21]} 22. Qa5 {[%clk 0:02:31]}  Rb5 {[%clk 0:02:19]} 23. Qc3 {[%clk 0:02:30]}  e4 {[%clk 0:02:18]} 24. d4 {[%clk 0:02:26]}  Rd8 {[%clk 0:02:12]} 25. Rd1 {[%clk 0:02:23]}  Rd5 {[%clk 0:02:09]} 26. Qe3 {[%clk 0:02:16]}  Rd8 {[%clk 0:02:05]} 27. c4 {[%clk 0:02:15]}  Rb8 {[%clk 0:02:04]} 28. Qf4 {[%clk 0:02:06]}  Bd7 {[%clk 0:02:03]} 29. Qc7 {[%clk 0:02:01]}  e3 {[%clk 0:01:55]} 30. Rfe1 {[%clk 0:02:00]}  f4 {[%clk 0:01:41]} 31. Qxf4 {[%clk 0:01:58]}  Bg4 {[%clk 0:01:41]} 32. Rd3 {[%clk 0:01:53]}  e2 {[%clk 0:01:40]} 33. h3 {[%clk 0:01:52]}  Rf8 {[%clk 0:01:40]} 34. Qc1 {[%clk 0:01:48]}  Qf6 {[%clk 0:01:29]} 35. hxg4 {[%clk 0:01:22]}  Qh4+ {[%clk 0:01:27]} 36. Kg1 {[%clk 0:01:21]}  Qf2+ {[%clk 0:01:26]} 37. Kh2 {[%clk 0:01:19]}  hxg4 {[%clk 0:01:27]} 38. Rg3 {[%clk 0:01:07]}  Rf5 {[%clk 0:01:14]} 39. Rh3 {[%clk 0:00:21]}  gxh3 {[%clk 0:01:12]} 40. Rg1 {[%clk 0:00:05]}  Rh5 {[%clk 0:01:07]} 0-1